bitfinex/quotes_SOLUSD_20250607
["timestamp","ask_amount","ask_price","bid_price","bid_amount"]
[1749275124960,16.15327045,151.31,151.3,89.7]
[1749275125167,16.15327045,151.31,151.3,130.74]
[1749275126291,22.76221896,151.31,151.3,130.74]
[1749275127275,16.15327045,151.31,151.3,130.74]
[1749275127474,22.76186954,151.32,151.3,130.74]
[1749275128379,16.15327045,151.31,151.3,130.74]
[1749275128555,16.15327045,151.31,151.3,41.04]
[1749275129375,22.76237488,151.31,151.28,100.54]
[1749275129579,22.76237488,151.31,151.3,41.0]
[1749275131482,22.76237488,151.31,151.28,10.84]
[1749275131669,16.15327045,151.29,151.28,40.98]
[1749275131862,16.15327045,151.29,151.24,10.84]
[1749275131863,16.15327045,151.29,151.24,100.54]
[1749275132073,16.15327045,151.27,151.25,40.98]
[1749275133277,16.15327045,151.26,151.24,100.54]
[1749275133467,22.76433204,151.27,151.25,40.98]
[1749275133984,16.15327045,151.27,151.25,40.98]
[1749275135193,10.77535171,151.27,151.24,100.54]
[1749275135366,10.77535171,151.27,151.26,40.98]
[1749275135997,17.38575547,151.28,151.26,40.98]
[1749275137092,10.77535171,151.27,151.26,40.98]
[1749275137776,17.38604781,151.27,151.26,40.96]
[1749275139573,10.77535171,151.27,151.26,40.96]
[1749275140870,10.77535171,151.27,151.24,100.54]
[1749275141079,10.77535171,151.27,151.25,40.92]
[1749275141574,10.77535171,151.27,151.24,100.54]
[1749275141890,10.77535171,151.27,151.25,40.92]
[1749275143180,10.77535171,151.26,151.25,40.92]
[1749275143576,10.77535171,151.27,151.25,40.92]
[1749275144982,6.61084338,151.27,151.26,40.9]
[1749275145183,17.38619509,151.27,151.26,40.9]
[1749275145386,22.30920148,151.27,151.26,40.9]
[1749275145586,17.38619509,151.27,151.26,40.9]
[1749275146173,22.30920148,151.27,151.26,40.9]
[1749275146377,17.38619509,151.27,151.26,40.9]
[1749275146577,22.30920148,151.27,151.26,40.9]
[1749275147193,22.30920148,151.27,151.25,40.88]
[1749275147391,15.6983581,151.26,151.25,40.88]
[1749275149303,22.30949124,151.26,151.25,40.88]
[1749275149516,17.38648485,151.26,151.25,40.88]
[1749275149888,22.30949124,151.26,151.25,40.88]
[1749275150110,17.38648485,151.26,151.25,40.88]
[1749275150617,22.30949124,151.26,151.25,40.88]
[1749275150785,17.38648485,151.26,151.25,40.88]
[1749275150984,6.61113314,151.26,151.25,40.88]
[1749275151186,10.77535171,151.26,151.25,40.88]
[1749275151385,10.77535171,151.26,151.25,40.86]
[1749275152895,10.77535171,151.26,151.25,40.84]
[1749275153308,17.38648485,151.26,151.25,40.84]
[1749275155897,23.92859124,151.26,151.22,10.7]
[1749275156215,10.77535171,151.23,151.22,51.52]
[1749275156602,10.77535171,151.23,151.22,10.7]
[1749275156990,10.77535171,151.23,151.18,10.7]
[1749275157193,10.77535171,151.2,151.19,40.82]
[1749275158603,10.77535171,151.21,151.19,40.82]
[1749275159492,26.0,151.25,151.19,40.82]
[1749275159835,10.77535171,151.24,151.2,10.77535171]
[1749275160194,26.0,151.25,151.2,10.77535171]
[1749275160394,10.77535171,151.26,151.22,10.77535171]
[1749275160591,10.77535171,151.26,151.23,51.52]
[1749275161201,10.77535171,151.25,151.23,51.52]
[1749275162331,10.77535171,151.26,151.23,51.52]
[1749275163130,26.0,151.27,151.23,51.52]
[1749275163311,10.77535171,151.26,151.23,51.52]
[1749275163708,10.77535171,151.27,151.23,58.13230269]
[1749275164037,10.77535171,151.27,151.23,158.6076544]
[1749275164329,10.77535171,151.26,151.23,141.22]
[1749275164708,10.77535171,151.25,151.23,51.52]
[1749275164911,10.77535171,151.24,151.23,10.7]
[1749275165231,10.77535171,151.24,151.23,51.52]
[1749275167827,17.38735911,151.24,151.23,51.52]
[1749275168618,10.77535171,151.24,151.23,51.48]
[1749275171832,22.69195365,151.29,151.23,51.48]
[1749275171833,4.94245411,151.27,151.24,6.6120074]
[1749275172027,10.77535171,151.28,151.23,68.86766971]
[1749275172207,10.77535171,151.28,151.24,10.77535171]
[1749275174014,10.77535171,151.28,151.25,6.61157024]
[1749275174214,10.77535171,151.28,151.26,40.88]
[1749275175619,10.77535171,151.27,151.26,40.88]
[1749275175823,15.72098029,151.27,151.23,10.7]
[1749275176027,10.77535171,151.26,151.24,40.86]
[1749275176741,10.77535171,151.25,151.23,10.7]
[1749275177128,10.77535171,151.25,151.24,40.86]
[1749275177638,15.72311272,151.25,151.24,40.86]
[1749275177815,15.72311272,151.25,151.23,51.54]
[1749275178016,22.33512012,151.24,151.23,51.54]
[1749275178244,22.33512012,151.24,151.23,40.84]
[1749275178737,22.33512012,151.24,151.19,10.7]
[1749275179035,10.77535171,151.22,151.2,40.84]
[1749275180242,10.77535171,151.21,151.19,10.7]
[1749275180446,10.77535171,151.21,151.2,40.84]
[1749275180828,6.61302679,151.22,151.2,40.84]
[1749275181026,10.77535171,151.21,151.2,40.84]
[1749275181226,10.77535171,151.21,151.19,10.7]
[1749275181544,10.77535171,151.21,151.2,40.84]
[1749275181929,10.77535171,151.21,151.19,10.7]
[1749275182147,10.77535171,151.21,151.2,40.82]
[1749275183831,10.77535171,151.22,151.2,40.82]
[1749275184432,10.77535171,151.21,151.2,40.82]
[1749275185024,10.77535171,151.22,151.2,40.82]
[1749275185244,10.77535171,151.22,151.19,10.7]
[1749275185434,10.77535171,151.22,151.21,40.8]
[1749275188429,15.72152841,151.22,151.2,40.78]
[1749275188619,10.77535171,151.21,151.2,40.78]
[1749275189445,10.77535171,151.21,151.19,10.7]
[1749275189650,10.77535171,151.2,151.19,51.48]
[1749275189872,4.945852,151.23,151.19,79.64468854]
[1749275190043,4.94384215,151.3,151.22,10.77535171]
[1749275190347,4.94256554,151.32,151.27,17.38604781]
[1749275190549,4.94256554,151.31,151.28,40.86]
[1749275190750,4.94256554,151.32,151.28,40.86]
[1749275191044,10.77535171,151.33,151.29,10.77535171]
[1749275191253,4.94256554,151.35,151.31,10.77535171]
[1749275191427,4.94256554,151.35,151.32,40.88]
[1749275191428,10.77535171,151.34,151.32,40.88]
[1749275191625,10.77535171,151.34,151.3,10.77535171]
[1749275191626,10.77535171,151.34,151.33,40.88]
[1749275195944,2.73291378,151.36,151.33,40.88]
[1749275196144,10.77535171,151.34,151.33,40.88]
[1749275197247,2.73291378,151.36,151.33,40.88]
[1749275197636,10.77535171,151.34,151.33,40.88]
[1749275199661,10.77535171,151.34,151.27,21.45535171]
[1749275199956,10.77535171,151.32,151.28,40.82]
[1749275200157,10.77535171,151.32,151.28,51.59535171]
[1749275200930,10.77535171,151.33,151.28,51.59535171]
[1749275201362,10.77535171,151.33,151.29,40.8]
[1749275202464,10.77535171,151.33,151.29,47.40978981]
[1749275202879,10.77535171,151.33,151.29,58.18514152]
[1749275203977,10.77535171,151.34,151.29,58.18514152]
[1749275204639,10.77535171,151.35,151.3,10.77535171]
[1749275204899,39.50826549,151.36,151.31,10.77535171]
[1749275205042,39.50826549,151.36,151.32,10.77535171]
[1749275205238,2.73291378,151.36,151.33,40.76]
[1749275205450,2.73291378,151.36,151.33,51.53535171]
[1749275205860,2.73291378,151.36,151.33,58.14328758]
[1749275206447,2.73291378,151.36,151.33,47.36793587]
[1749275207064,2.73291378,151.36,151.35,10.77535171]
[1749275207242,2.73291378,151.36,151.35,0.28432314]
[1749275207439,2.73291378,151.36,151.35,11.05967485]
[1749275207953,2.73291378,151.36,151.35,6.60720185]
[1749275208157,2.73291378,151.36,151.35,17.38255356]
[1749275208348,2.73291378,151.36,151.35,69.00255356]
[1749275208548,2.73291378,151.36,151.35,58.22720185]
[1749275209088,2.73291378,151.36,151.35,51.62]
[1749275212272,2.73291378,151.36,151.35,58.22720185]
[1749275213180,2.73291378,151.36,151.3,1.5917]
[1749275213361,13.50826549,151.36,151.32,10.74]
[1749275213568,10.77535171,151.35,151.32,40.92]
[1749275214664,2.73291378,151.36,151.32,58.3037624]
[1749275214879,2.73291378,151.36,151.33,10.77535171]
[1749275215176,2.73291378,151.36,151.32,58.3037624]
[1749275215473,2.73291378,151.36,151.33,10.77535171]
[1749275216083,2.73291378,151.36,151.32,47.52841069]
[1749275216084,2.73291378,151.36,151.32,58.3037624]
[1749275217861,2.73291378,151.36,151.34,10.77535171]
[1749275218279,2.73291378,151.36,151.33,6.60794588]
[1749275218280,2.73291378,151.36,151.35,10.77535171]
[1749275219492,2.73291378,151.36,151.35,100.47535171]
[1749275219695,6.5082,151.44,151.36,86.96708622]
[1749275219980,10.77535171,151.44,151.39,10.77535171]
[1749275220181,6.60285459,151.45,151.4,10.77535171]
[1749275220369,10.77535171,151.44,151.4,10.77535171]
[1749275220681,21.40217172,151.5,151.43,10.77535171]
[1749275220682,6.60066006,151.5,151.43,10.77535171]
[1749275220868,32.60066006,151.5,151.44,40.94]
[1749275221181,1.5424,151.52,151.44,40.94]
[1749275221182,8.14261729,151.52,151.45,10.77535171]
[1749275221384,8.14261729,151.52,151.44,40.94]
[1749275221385,34.14261729,151.52,151.44,40.94]
[1749275221581,26.0,151.49,151.44,51.78]
[1749275221884,10.77535171,151.45,151.44,51.78]
[1749275222705,10.77535171,151.45,151.37,27.5226]
[1749275222888,10.77535171,151.4,151.38,51.8]
[1749275223758,1.5884,151.45,151.38,51.8]
[1749275223985,10.77535171,151.41,151.38,51.8]
[1749275224185,10.77535171,151.42,151.38,62.57535171]
[1749275224379,10.77535171,151.41,151.38,51.8]
[1749275224958,6.60327522,151.44,151.38,51.8]
[1749275225159,10.77535171,151.41,151.38,51.8]
[1749275226258,10.77535171,151.4,151.38,51.8]
[1749275226459,10.77535171,151.39,151.38,10.74]
[1749275226659,10.77535171,151.39,151.34,10.77535171]
[1749275226882,10.77535171,151.38,151.36,51.8]
[1749275227087,10.77535171,151.38,151.34,10.77535171]
[1749275227281,10.77535171,151.38,151.35,51.8]
[1749275228087,6.6047306,151.41,151.35,10.74]
[1749275228296,10.77535171,151.37,151.35,51.78]
[1749275228768,23.11451591,151.42,151.35,10.74]
[1749275229088,10.77535171,151.37,151.35,51.78]
[1749275231211,10.77535171,151.37,151.35,10.74]
[1749275231387,23.11451591,151.42,151.35,51.78]
[1749275231592,10.77535171,151.37,151.35,51.78]
[1749275232100,10.77535171,151.36,151.35,10.74]
[1749275233489,10.77535171,151.36,151.34,41.04]
[1749275233698,10.77535171,151.35,151.34,41.04]
[1749275233889,10.77535171,151.35,151.33,86.96708622]
[1749275234087,10.77535171,151.34,151.33,128.00708622]
[1749275234689,10.77535171,151.34,151.32,51.78]
[1749275234902,10.77535171,151.33,151.32,51.78]
[1749275235415,10.77535171,151.34,151.32,51.76]
[1749275236090,4.89657682,151.37,151.32,58.36837972]
[1749275236408,4.89657682,151.37,151.32,10.74]
[1749275236409,10.77535171,151.33,151.32,10.74]
[1749275237120,10.77535171,151.34,151.32,10.74]
[1749275238509,4.89657682,151.37,151.32,10.74]
[1749275238736,10.77535171,151.34,151.32,10.74]
[1749275239705,10.77535171,151.33,151.32,10.74]
[1749275240709,7.651,151.32,151.24,44.69193261]
[1749275241027,4.89657682,151.31,151.26,10.74]
[1749275241394,4.89657682,151.31,151.26,51.76]
[1749275241834,12.54757682,151.32,151.26,51.76]
[1749275242333,10.77535171,151.27,151.26,51.76]
[1749275242534,10.77535171,151.27,151.2,6.61333282]
[1749275242734,6.61070136,151.27,151.22,10.8]
[1749275242896,10.77535171,151.23,151.21,41.04]
[1749275243100,10.77535171,151.22,151.21,41.04]
[1749275243922,10.77535171,151.22,151.2,10.8]
[1749275244132,10.77535171,151.22,151.21,41.04]
[1749275244927,10.77535171,151.22,151.2,10.8]
[1749275245130,10.77535171,151.22,151.21,41.02]
[1749275246424,10.77535171,151.23,151.21,41.02]
[1749275247129,10.77535171,151.22,151.21,41.02]
[1749275247309,10.77535171,151.22,151.2,10.8]
[1749275247508,10.77535171,151.22,151.21,41.0]
[1749275248403,10.77535171,151.23,151.21,41.0]
[1749275249029,10.77535171,151.22,151.21,41.0]
[1749275251025,10.77535171,151.22,151.19,58.41411592]
[1749275251211,10.77535171,151.22,151.19,17.43411592]
[1749275251413,10.77535171,151.22,151.19,58.41411592]
[1749275251815,10.77535171,151.2,151.19,51.78]
[1749275252022,6.61247829,151.23,151.19,10.82]
[1749275252212,10.77535171,151.2,151.19,10.82]
[1749275255039,6.6120074,151.24,151.19,10.82]
[1749275255233,10.77535171,151.22,151.19,10.82]
[1749275255432,10.77535171,151.22,151.19,17.43408442]
[1749275255814,10.77535171,151.22,151.19,10.82]
[1749275256633,10.77535171,151.22,151.19,17.43418722]
[1749275257222,10.77535171,151.23,151.19,17.43418722]
[1749275258442,7.684,151.25,151.19,17.43418722]
[1749275258443,10.77535171,151.22,151.19,17.43418722]
[1749275261048,10.77535171,151.22,151.19,10.82]
[1749275261440,10.77535171,151.2,151.19,10.82]
[1749275267554,6.61302366,151.22,151.19,10.82]
[1749275267732,10.77535171,151.2,151.19,10.82]
[1749275267932,6.61302366,151.22,151.19,10.82]
[1749275268149,10.77535171,151.2,151.19,10.82]
[1749275268351,10.77535171,151.21,151.19,10.82]
[1749275274461,1.5478,151.25,151.2,40.84]
[1749275274646,12.32315171,151.25,151.21,6.61331922]
[1749275274960,12.32315171,151.25,151.2,58.22904828]
[1749275275167,10.77535171,151.24,151.2,40.84]
[1749275275739,10.77535171,151.24,151.2,51.61535171]
[1749275277048,10.77535171,151.23,151.2,40.84]
[1749275280366,8.15950297,151.25,151.2,40.84]
[1749275280551,10.77535171,151.23,151.2,40.84]
[1749275281255,1.5478,151.25,151.2,58.22903988]
[1749275281566,10.77535171,151.24,151.2,58.22903988]
[1749275281867,10.77535171,151.23,151.2,40.84]
[1749275284344,10.77535171,151.24,151.2,40.84]
[1749275284546,8.15940585,151.25,151.2,51.61535171]
[1749275284747,10.77535171,151.24,151.2,58.22907067]
[1749275285655,15.71910889,151.24,151.2,58.22907067]
[1749275285966,10.77535171,151.23,151.2,47.45371896]
[1749275286473,10.77535171,151.24,151.2,47.45371896]
[1749275286967,4.94604401,151.24,151.2,47.45371896]
[1749275287176,4.94601986,151.24,151.2,40.84]
[1749275287361,15.72137157,151.24,151.2,40.84]
[1749275287557,10.77535171,151.24,151.2,40.84]
[1749275287762,15.72229556,151.24,151.2,40.84]
[1749275288378,10.77535171,151.24,151.2,40.84]
[1749275289681,17.38742321,151.24,151.2,40.84]
[1749275289986,10.77535171,151.23,151.2,40.84]
[1749275290387,10.77535171,151.21,151.2,40.84]
[1749275290884,10.77535171,151.21,151.15,10.77535171]
[1749275291064,10.77535171,151.19,151.17,10.7]
[1749275291296,10.77535171,151.19,151.17,52.08]
[1749275291990,10.77535171,151.19,151.17,10.7]
[1749275294978,10.77535171,151.2,151.17,10.7]
[1749275297303,4.94790053,151.21,151.17,10.7]
[1749275297477,10.77535171,151.2,151.17,10.7]
[1749275299795,10.77535171,151.19,151.17,10.7]
[1749275300379,10.77535171,151.2,151.17,10.7]
[1749275300967,10.77535171,151.19,151.17,10.7]
[1749275301173,10.77535171,151.18,151.17,10.7]
[1749275302003,10.77535171,151.18,151.14,52.22]
[1749275302204,10.77535171,151.17,151.14,52.22]
[1749275303283,10.77535171,151.16,151.14,10.94]
[1749275305916,11.5607606,151.18,151.14,10.94]
[1749275306212,10.77535171,151.16,151.14,10.94]
[1749275309608,10.77535171,151.15,151.14,10.94]
[1749275311641,18.96749732,151.19,151.14,21.71535171]
[1749275311937,18.96749732,151.19,151.15,10.77535171]
[1749275312125,10.77535171,151.18,151.14,10.94]
[1749275312519,10.77535171,151.17,151.14,10.94]
[1749275313043,10.77535171,151.16,151.14,10.94]
[1749275313348,10.77535171,151.17,151.14,10.94]
[1749275314336,10.77535171,151.18,151.14,28.33166488]
[1749275314709,12.35315171,151.19,151.15,10.77535171]
[1749275315741,12.35315171,151.19,151.15,17.39123911]
[1749275317045,12.35315171,151.19,151.14,28.33168192]
[1749275319725,10.77535171,151.17,151.14,10.94]
[1749275320637,10.77535171,151.18,151.14,10.94]
[1749275322039,10.77535171,151.18,151.14,21.71535171]
[1749275322747,8.19218364,151.19,151.14,21.71535171]
[1749275323043,10.77535171,151.18,151.14,21.71535171]
[1749275324933,8.27535171,151.18,151.14,21.71535171]
[1749275325138,12.35315171,151.19,151.15,10.77535171]
[1749275326559,32.61378494,151.2,151.15,17.39117043]
[1749275326755,43.38913665,151.2,151.15,17.39117043]
[1749275327867,36.77535171,151.2,151.15,17.39117043]
[1749275328644,4.9389413,151.22,151.17,10.77535171]
[1749275328958,8.0209,151.23,151.17,10.77535171]
[1749275328959,12.41635171,151.23,151.18,10.77535171]
[1749275329464,12.41635171,151.23,151.19,10.77535171]
[1749275330165,12.41635171,151.23,151.19,17.38954292]
[1749275330539,12.41635171,151.23,151.19,6.61419121]
[1749275330942,10.77535171,151.22,151.19,6.61419121]
[1749275331164,10.77535171,151.22,151.17,97.74243793]
[1749275331368,10.77535171,151.22,151.17,104.35740829]
[1749275332444,15.71429301,151.22,151.17,104.35740829]
[1749275333060,10.77535171,151.22,151.18,10.77535171]
[1749275333459,10.77535171,151.22,151.18,17.38992267]
[1749275333660,15.72100649,151.22,151.18,17.38992267]
[1749275334560,15.72100649,151.22,151.18,10.77535171]
[1749275334762,17.38828506,151.22,151.18,10.77535171]
[1749275335058,10.77535171,151.21,151.17,104.35738318]
[1749275337155,10.77535171,151.21,151.17,115.11738318]
[1749275338265,15.72182982,151.22,151.17,115.11738318]
[1749275338884,10.77535171,151.22,151.17,115.11738318]
[1749275339373,15.72165576,151.22,151.17,115.11738318]
[1749275339563,15.7214787,151.22,151.17,115.11738318]
[1749275339767,8.25357606,151.23,151.17,115.11738318]
[1749275339969,15.72157594,151.22,151.17,115.11738318]
[1749275340171,15.72157594,151.22,151.18,0.5]
[1749275340493,10.77535171,151.22,151.17,115.11738318]
[1749275341099,10.77535171,151.22,151.18,10.77535171]
[1749275341277,10.77535171,151.22,151.18,17.38993779]
[1749275343176,12.41635171,151.23,151.18,17.38993779]
[1749275343774,4.94422333,151.24,151.21,10.77535171]
[1749275344078,8.1762,151.27,151.23,10.77535171]
[1749275344286,18.95155171,151.27,151.23,10.77535171]
[1749275344478,23.89475956,151.27,151.23,10.77535171]
[1749275344970,23.89475956,151.27,151.22,10.76]
[1749275344971,18.95155171,151.27,151.22,21.53535171]
[1749275345166,12.29425171,151.27,151.22,28.1481967]
[1749275345372,12.29425171,151.27,151.23,10.77535171]
[1749275346392,18.90503011,151.27,151.23,10.77535171]
[1749275346780,10.77535171,151.26,151.22,10.77535171]
[1749275347092,10.77535171,151.23,151.19,10.76]
[1749275347291,17.38820481,151.23,151.19,51.62]
[1749275347873,10.77535171,151.22,151.19,10.76]
[1749275348089,10.77535171,151.22,151.19,51.62]
[1749275348901,10.77535171,151.23,151.19,62.39535171]
[1749275349198,10.77535171,151.24,151.19,62.39535171]
[1749275349770,10.77535171,151.24,151.2,40.88]
[1749275351301,17.38738115,151.24,151.2,40.88]
[1749275352694,6.61202944,151.24,151.2,40.88]
[1749275352897,17.38738115,151.24,151.2,40.88]
[1749275353379,10.77535171,151.23,151.2,40.88]
[1749275356481,10.77535171,151.22,151.2,40.88]
[1749275357484,10.77535171,151.21,151.19,51.58]
[1749275357680,10.77535171,151.2,151.17,40.82]
[1749275357904,10.77535171,151.19,151.17,40.82]
[1749275358099,10.77535171,151.19,151.16,10.76]
[1749275358303,10.77535171,151.2,151.17,40.82]
[1749275358609,10.77535171,151.2,151.16,21.53535171]
[1749275358951,10.77535171,151.2,151.17,40.82]
[1749275359215,18.95850973,151.21,151.17,40.82]
[1749275359594,10.77535171,151.2,151.17,40.82]
[1749275360294,26.0,151.22,151.18,10.77535171]
[1749275360520,15.71855956,151.24,151.2,10.77535171]
[1749275360924,15.71855956,151.24,151.21,40.82]
[1749275361228,12.34515171,151.25,151.21,51.59535171]
[1749275361421,1.5698,151.25,151.21,62.35535171]
[1749275361822,12.34515171,151.25,151.21,62.35535171]
[1749275362833,18.95686952,151.25,151.21,62.35535171]
[1749275364928,10.77535171,151.23,151.21,51.58]
[1749275366317,6.61288189,151.22,151.21,51.58]
[1749275366637,17.3882336,151.22,151.21,10.76]
[1749275366825,22.33284354,151.22,151.17,10.66]
[1749275367026,10.77535171,151.2,151.18,40.78]
[1749275367333,10.77535171,151.19,151.17,51.44]
[1749275367533,4.94519453,151.21,151.17,51.44]
[1749275367729,10.77535171,151.2,151.17,51.44]
[1749275368117,15.72082562,151.2,151.17,51.44]
[1749275368320,17.38941901,151.2,151.17,51.44]
[1749275368534,22.33489292,151.2,151.17,51.44]
[1749275368718,17.38941901,151.2,151.17,51.42]
[1749275368919,22.33489292,151.2,151.17,51.42]
[1749275369221,17.38941901,151.2,151.17,51.42]
[1749275369421,22.33489292,151.2,151.17,51.42]
[1749275369633,17.38941901,151.2,151.17,51.42]
[1749275369826,22.33489292,151.2,151.17,51.42]
[1749275370028,10.77535171,151.19,151.17,51.42]
[1749275370240,17.38967396,151.19,151.17,51.42]
[1749275372241,10.77535171,151.19,151.17,51.42]
[1749275372752,17.38924921,151.2,151.17,51.42]
[1749275372941,22.33411775,151.2,151.17,51.42]
[1749275373133,17.38924921,151.2,151.17,51.42]
[1749275373336,22.33411775,151.2,151.17,51.42]
[1749275373637,17.38924921,151.2,151.17,51.42]
[1749275373842,22.33411775,151.2,151.17,51.42]
[1749275374037,17.38924921,151.2,151.17,51.42]
[1749275374336,22.33411775,151.2,151.17,51.42]
[1749275374536,10.77535171,151.18,151.17,10.66]
[1749275374746,10.77535171,151.18,151.17,51.38]
[1749275374953,10.77535171,151.18,151.17,10.66]
[1749275376226,10.77535171,151.18,151.13,10.66]
[1749275376432,10.77535171,151.17,151.13,10.66]
[1749275376632,10.77535171,151.16,151.14,40.7]
[1749275376852,17.39076001,151.17,151.14,40.7]
[1749275377966,17.39096884,151.16,151.14,40.7]
[1749275378268,17.39096884,151.16,151.13,10.66]
[1749275378562,17.39096884,151.16,151.14,40.7]
[1749275379430,17.39096884,151.16,151.14,40.68]
[1749275383540,17.39096884,151.16,151.13,10.66]
[1749275383735,17.39096884,151.16,151.13,51.32]
[1749275384948,10.77535171,151.15,151.13,51.32]
[1749275385344,17.39096884,151.16,151.13,51.32]
[1749275385954,17.38998327,151.18,151.13,62.09535171]
[1749275386378,17.38998327,151.18,151.14,10.77535171]
[1749275386744,6.61463156,151.18,151.14,10.77535171]
[1749275387147,34.27082647,151.19,151.14,10.77535171]
[1749275387454,10.77535171,151.18,151.14,10.77535171]
[1749275388042,10.77535171,151.17,151.13,51.32]
[1749275388249,10.77535171,151.18,151.13,62.09535171]
[1749275388859,10.77535171,151.18,151.13,149.06243793]
[1749275389258,17.390365,151.18,151.13,149.06243793]
[1749275389467,10.77535171,151.17,151.13,149.06243793]
[1749275389867,10.77535171,151.17,151.13,138.28708622]
[1749275391369,10.77535171,151.17,151.13,149.06243793]
[1749275393953,17.39051444,151.17,151.13,149.06243793]
[1749275394685,17.39051444,151.17,151.13,62.09535171]
[1749275399781,17.39051444,151.17,151.13,51.32]
[1749275400983,17.39051444,151.17,151.12,104.35965713]
[1749275400984,17.39051444,151.17,151.14,40.6]
[1749275402068,17.39051444,151.17,151.15,40.58]
[1749275402990,10.77535171,151.17,151.15,40.58]
[1749275405499,17.39079853,151.17,151.15,40.58]
[1749275406179,10.77535171,151.16,151.13,51.14]
[1749275406373,23.13720708,151.19,151.15,10.77535171]
[1749275406374,6.60136854,151.19,151.15,10.77535171]
[1749275406698,1.6565,151.19,151.16,40.58]
[1749275407270,8.27077555,151.19,151.16,40.58]
[1749275408387,26.0,151.2,151.17,10.77535171]
[1749275408586,30.94486854,151.2,151.17,10.77535171]
[1749275408976,4.94486854,151.2,151.17,10.77535171]
[1749275409170,4.94486854,151.2,151.16,51.35535171]
[1749275409171,48.334168,151.2,151.16,51.35535171]
[1749275409478,10.77535171,151.18,151.16,40.58]
[1749275409687,22.33496616,151.18,151.16,40.58]
[1749275409882,17.39009762,151.18,151.16,40.58]
[1749275410099,22.33496616,151.18,151.16,40.58]
[1749275410286,17.39009762,151.18,151.16,40.58]
[1749275411522,15.72894207,151.17,151.13,10.77535171]
[1749275411676,17.39081128,151.17,151.14,40.58]
[1749275412011,4.95400558,151.16,151.14,40.58]
[1749275412202,15.72958993,151.15,151.13,40.58]
[1749275412386,6.61545957,151.17,151.13,51.35535171]
[1749275412387,17.39081128,151.17,151.13,51.35535171]
[1749275412582,4.95382789,151.16,151.13,40.58]
[1749275412784,17.39081128,151.17,151.13,51.35535171]
[1749275412990,4.95426096,151.16,151.14,40.58]
[1749275413190,17.39081128,151.17,151.14,40.58]
[1749275413491,4.95420319,151.16,151.14,40.58]
[1749275413693,17.39081128,151.17,151.14,40.58]
[1749275414007,4.95453875,151.16,151.14,40.58]
[1749275414212,17.39081128,151.17,151.14,40.58]
[1749275414377,4.95458001,151.16,151.14,40.58]
[1749275414573,17.39081128,151.17,151.14,40.58]
[1749275414776,15.73031929,151.16,151.14,40.58]
[1749275415006,4.95508677,151.15,151.14,40.58]
[1749275415286,10.77535171,151.16,151.14,40.58]
[1749275415486,4.95489633,151.15,151.14,40.58]
[1749275415720,15.73055816,151.15,151.14,40.58]
[1749275416815,4.95520645,151.15,151.14,40.58]
[1749275417020,10.77535171,151.16,151.14,40.58]
[1749275417521,10.77535171,151.16,151.13,40.58]
[1749275419218,4.95621842,151.15,151.12,21.33535171]
[1749275419425,17.39086497,151.16,151.13,40.58]
[1749275419727,15.73221419,151.15,151.13,40.58]
[1749275419892,17.39172923,151.15,151.13,40.58]
[1749275420237,6.61637752,151.15,151.13,40.58]
[1749275421217,17.39172923,151.15,151.13,40.58]
[1749275423020,17.39172923,151.15,151.12,10.56]
[1749275423528,17.39172923,151.15,151.12,51.14]
[1749275424813,10.77535171,151.15,151.12,51.14]
[1749275430007,6.61515654,151.17,151.12,51.14]
[1749275430209,15.72937519,151.16,151.12,51.14]
[1749275430420,4.95376357,151.15,151.12,51.14]
[1749275430715,10.77535171,151.16,151.12,51.14]
[1749275431022,4.95364945,151.15,151.12,51.14]
[1749275431232,10.77535171,151.16,151.12,51.14]
[1749275431400,4.95349068,151.15,151.12,51.14]
[1749275431693,10.77535171,151.16,151.12,51.14]
[1749275431899,4.95357418,151.15,151.12,51.14]
[1749275432107,10.77535171,151.16,151.12,51.14]
[1749275432308,4.95360252,151.15,151.12,51.14]
[1749275432517,17.39088177,151.16,151.12,51.14]
[1749275432718,4.95365701,151.15,151.12,51.14]